Cogmind - Beta 14 @@@ ROGUE MODE // 2024.12.11 @ 11:27:28 Player: AshCrow Result: Destroyed by H-71 Marshal with Heavy Mass Driver Performance ------------- Evolutions (7) 3500 Regions Visited (11) 2200 Robots Destroyed (84) 420 Value Destroyed (3118) 3118 Prototype IDs (2) 40 Alien Tech Used (0) 0 Bonus (268) 268 TOTAL SCORE: 9546 Bonus ------- High Alert Combat Kills 104 Follower Combat Kills 216 Friendly Fire -52 Cogmind --------- Core Integrity 0/1300 Matter 148/300 Energy 99/100 System Corruption 4% Temperature Cool (0) Movement Core (50) Location -3/Research Parts ------- > --- POWER (3) -------- (None) > --- PROPULSION (5) --- (None) > --- UTILITY (7) ------ (None) > --- WEAPON (6) ------- (None) > --- INVENTORY (5) ---- Micro Nuclear Core Reflective Plating Relay Coupler [Cutter] (22) Relay Coupler [Hunter] (13) Remote Datajack Peak State ------------ > --- POWER ------------ Cooled Deuterium Engine Light Angular Momentum Engine > --- PROPULSION ------- Light Treads Medium Treads Medium Treads > --- UTILITY ---------- Large Storage Unit Signal Interpreter Improved Particle Charger Improved Medium Armor Plating Hacking Suite > --- WEAPON ----------- Improved Assault Rifle High-powered Shotgun Flak Gun Assault Cannon > --- INVENTORY -------- Micro Nuclear Core Small Matter Pod Transmission Jammer Reflective Plating Relay Coupler [Cutter] Relay Coupler [Demolisher] Relay Coupler [Hunter] Improved Field Recycling Unit Arc Projector Gatling Laser Gatling Laser Gauss Rifle Heavy Missile Launcher Remote Datajack [Rating: 51] Favorites ----------- Power Micro Nuclear Core Engine Ion Engine Power Core Micro Nuclear Core Propulsion Light Treads Treads Light Treads Flight Unit Impulse Thruster Array Utility Signal Interpreter Device Sensor Array Storage Small Storage Unit Processor Signal Interpreter Hackware Hacking Suite Protection Reflective Plating Weapon Flak Gun Energy Gun Particle Gun Ballistic Gun Flak Gun Ballistic Cannon Assault Cannon Launcher Heavy Missile Launcher Build | -11 -10 -9 -8 -8 -7 -6 -5 -4 -4 -4 -3 ------- Run | Yrd Mat Mat Mat Sto Fac Fac Fac Fac Upp Upp Res Slots Evolved 14 | . . 2 2 . 2 2 2 2 . . 2 Power 2 | . . . . . . 1 . 1 . . . Propulsion 3 | . . 1 1 . . . . . . . 1 Utility 5 | . . 1 . . 1 1 1 . . . 1 Weapon 4 | . . . 1 . 1 . 1 1 . . . Parts Attached 76 | 6 5 8 6 9 26 6 9 . . . 1 Power 10 | 1 . 1 1 2 2 3 . . . . . Engine 5 | 1 . 1 1 . . 2 . . . . . Core 5 | . . . . 2 2 1 . . . . . Reactor . | . . . . . . . . . . . . Propulsion 14 | 2 . 1 2 2 5 1 . . . . 1 Treads 13 | 2 . 1 2 2 5 1 . . . . . Leg . | . . . . . . . . . . . . Wheel . | . . . . . . . . . . . . Hover . | . . . . . . . . . . . . Flight 1 | . . . . . . . . . . . 1 Utility 18 | 1 2 1 . 2 6 2 4 . . . . Device 7 | . . 1 . . 2 2 2 . . . . Storage 3 | 1 . . . 1 . . 1 . . . . Processor 1 | . 1 . . . . . . . . . . Hackware 1 | . . . . . 1 . . . . . . Protection 6 | . 1 . . 1 3 . 1 . . . . Artifact . | . . . . . . . . . . . . Weapon 34 | 2 3 5 3 3 13 . 5 . . . . Energy Gun 18 | 1 3 5 3 2 1 . 3 . . . . Energy Cannon . | . . . . . . . . . . . . Ballistic Gun 12 | 1 . . . 1 9 . 1 . . . . Ballistic Cannon 1 | . . . . . 1 . . . . . . Launcher 3 | . . . . . 2 . 1 . . . . Special Weapon . | . . . . . . . . . . . . Impact Weapon . | . . . . . . . . . . . . Slashing Weapon . | . . . . . . . . . . . . Piercing Weapon . | . . . . . . . . . . . . Special Melee Weapon . | . . . . . . . . . . . . Unidentified Prototypes 2 | . . . . . 1 1 . . . . . Corrupted Parts 1 | . . 1 . . . . . . . . . System Corruption 2 | . . 2 . . . . . . . . . Parts Lost 38 | . 2 4 . 2 6 3 19 . 1 . 1 Power 3 | . . . . . 1 . 2 . . . . Propulsion 11 | . . 2 . . 4 1 3 . . . 1 Utility 9 | . . . . 1 . 2 5 . 1 . . Weapon 15 | . 2 2 . 1 1 . 9 . . . . Highest Loss Streak 17 | . 1 2 . 1 2 3 17 . 1 . 1 To Critical Strikes 1 | . . . . . . . 1 . . . . Average Slot Usage (%) 82 | . 95 79 73 88 96 90 81 5 3 . . Engine 4 | . 14 11 9 1 . 9 9 . . . . Core 3 | . . . . 7 6 3 . . . . . Treads 21 | . 28 19 10 28 27 19 14 . . . . Device 2 | . . 9 9 . 1 5 5 . . . . Storage 11 | . 14 11 9 13 14 6 9 . . . . Processor 6 | . 5 11 9 9 7 6 4 . . . . Hackware 1 | . . . . . . 6 5 5 3 . . Protection 3 | . 4 . . 1 5 5 3 . . . . Energy Gun 9 | . 14 16 26 22 3 . 5 . . . . Ballistic Gun 14 | . 14 2 . 4 26 20 12 . . . . Peak Build Rating 51 | 6 8 11 14 18 42 51 50 4 4 1 17 Average Rating 23 | 4 7 9 11 15 35 47 44 4 2 1 2 On Entrance 11 | . 6 8 10 14 18 36 39 4 4 1 1 Naked Turns 294 | . . . . . . . . . 109 15 170 Heaviest Build 74 | 14 17 17 20 39 53 71 74 . . . . Greatest Support 98 | 40 40 40 60 80 98 76 68 3 3 3 16 Greatest Overweight (x) 11 | . . . . . . 1 11 . . . . Average Overweight (x) . | . . . . . . . . . . . . Largest Inventory Capacity 15 | 8 8 8 8 15 15 15 15 5 5 5 5 Average Capacity 11 | 6 8 8 8 11 15 15 14 5 5 5 5 Most Carried 15 | 3 8 8 8 10 15 14 13 5 5 5 5 Average Carried 10 | 1 5 7 7 8 14 12 9 5 5 5 5 Final Capacity 15 | 8 8 8 8 15 15 15 5 5 5 5 5 Final Carried 14 | 2 8 8 8 10 14 14 5 5 5 5 5 Class Distribution -------------------- 29% | Mutant 20% | Scavenger-Tank 15% | Scavenger-Gunner 14% | Tank 7% | Scavenger-Skirmisher 5% | Gunner 5% | Scavenger-Mutant Dominant Class ---------------- Mutant | -10/Materials Scavenger-Mutant | -9/Materials Scavenger-Skirmisher | -8/Materials Scavenger-Gunner | -8/Storage Tank | -7/Factory Scavenger-Gunner | -6/Factory Scavenger-Tank | -5/Factory Mutant | -4/Factory Mutant | -4/Upper Caves Mutant | -4/Upper Caves Mutant | -3/Research Resources | -11 -10 -9 -8 -8 -7 -6 -5 -4 -4 -4 -3 ----------- Run | Yrd Mat Mat Mat Sto Fac Fac Fac Fac Upp Upp Res Matter Collected 2241 | 260 145 80 59 91 1232 177 173 . 18 . 6 Remotely . | . . . . . . . . . . . . Salvage Created 3134 | . 423 397 135 271 1548 156 204 . . . . Parts 157 | . 28 20 11 12 65 8 13 . . . . Haulers Intercepted . | . . . . . . . . . . . . Recyclers Shooed 7 | . 1 2 . . 4 . . . . . . Parts Field Recycled 5 | . . . . . 4 . 1 . . . . Retrieved Matter 98 | . . . . . 86 . 12 . . . . Parts Self-Destructed . | . . . . . . . . . . . . Prevented . | . . . . . . . . . . . . Kills | -11 -10 -9 -8 -8 -7 -6 -5 -4 -4 -4 -3 ------- Run | Yrd Mat Mat Mat Sto Fac Fac Fac Fac Upp Upp Res Combat Hostiles Destroyed 64 | . 9 8 2 4 34 3 4 . . . . Guns 55 | . 7 6 2 4 30 2 4 . . . . Cannons 1 | . . . . . . 1 . . . . . AOE 8 | . 2 2 . . 4 . . . . . . Classes Destroyed 14 | . 4 2 . 2 6 . . . . . . Worker 6 | . 2 . . 1 3 . . . . . . Builder 3 | . . . . 1 1 . 1 . . . . Tunneler 1 | . . . . . 1 . . . . . . Recycler 3 | . . . . 1 2 . . . . . . Operator 1 | . . . . . 1 . . . . . . Watcher 6 | . 2 1 1 1 . . 1 . . . . Swarmer 7 | . 3 . . 1 3 . . . . . . Grunt 38 | . 6 6 . 3 19 2 2 . . . . Brawler 1 | . . 1 . . . . . . . . . Sentry 7 | . . 1 2 . 3 1 . . . . . Specialist 2 | . . . . . 2 . . . . . . Hunter 1 | . . . . . 1 . . . . . . Programmer 7 | . . . . . 5 . 2 . . . . Heavy 1 | . . . . . 1 . . . . . . Best Kill Streak 6 | . 4 3 2 4 6 3 2 . . . . Combat Bots Only 6 | . 3 3 1 2 6 3 2 . . . . Max Kills in Single Turn 3 | . 1 1 1 3 3 1 1 . . . . Gunslinging . | . . . . . . . . . . . . Exploded 2 | . 1 1 . . 2 . . . . . . Melee . | . . . . . . . . . . . . Uniques/NPCs Destroyed . | . . . . . . . . . . . . Combat | -11 -10 -9 -8 -8 -7 -6 -5 -4 -4 -4 -3 -------- Run | Yrd Mat Mat Mat Sto Fac Fac Fac Fac Upp Upp Res Hostile Shots Fired 662 | . 47 42 4 22 201 25 140 2 62 . 117 Missed 203 | . 16 12 1 5 67 5 22 . 20 . 55 Damage Taken 8148 | . 485 416 40 252 1912 319 2390 47 787 . 1500 Core 3290 | . 22 106 . 15 144 19 815 47 787 . 1335 Absorbed by Shields . | . . . . . . . . . . . . Ignored by Resistances 87 | . . . . . 87 . . . . . . Core Remaining (%) 72 | 100 91 73 . 97 79 97 18 . . 27 . Volleys Fired 183 | . 35 33 4 13 68 13 17 . . . . Largest 5 | . 2 2 3 3 4 4 5 . . . . Hottest 257 | . 60 101 161 186 181 120 257 . . . . Shots Fired 527 | . 68 49 12 34 265 47 52 . . . . Gun 491 | . 68 49 12 34 256 34 38 . . . . Cannon 29 | . . . . . 3 13 13 . . . . Launcher 7 | . . . . . 6 . 1 . . . . Special . | . . . . . . . . . . . . Kinetic 353 | . 35 5 . . 233 47 33 . . . . Thermal 131 | . 19 22 12 34 26 . 18 . . . . Explosive 4 | . . . . . 3 . 1 . . . . Electromagnetic 39 | . 14 22 . . 3 . . . . . . Robot Hit Streak 17 | . 10 13 4 12 17 10 6 . . . . Robot Miss Streak 7 | . 2 2 2 3 7 5 7 . . . . Penetration Max . | . . . . . . . . . . . . Secondary Targets 4 | . . . . . 4 . . . . . . Max Gunslinging Chain 1 | . . . . . 1 . . . . . . Shots Hit Robots 383 | . 48 37 6 28 189 37 38 . . . . Core Hits 281 | . 21 13 7 30 166 22 22 . . . . Critical Kills . | . . . . . . . . . . . . Critical Parts Destroyed . | . . . . . . . . . . . . Critical Strikes 4 | . . 1 1 . 2 . . . . . . Burn 4 | . . 1 1 . 2 . . . . . . Melee Attacks . | . . . . . . . . . . . . Impact . | . . . . . . . . . . . . Slashing . | . . . . . . . . . . . . Piercing . | . . . . . . . . . . . . Sneak Attacks . | . . . . . . . . . . . . Combat Hostiles . | . . . . . . . . . . . . Follow-up Attacks . | . . . . . . . . . . . . Damage Inflicted 7918 | . 719 711 95 594 4107 653 1039 . . . . Guns 6182 | . 582 552 95 379 3464 466 644 . . . . Cannons 388 | . . . . . 45 185 158 . . . . Explosions 1305 | . 137 157 . 211 591 . 209 . . . . Melee . | . . . . . . . . . . . . Ramming 43 | . . 2 . 4 7 2 28 . . . . Kinetic 4644 | . 267 26 . . 3240 651 460 . . . . Thermal 1705 | . 251 369 95 379 269 . 342 . . . . Explosive 905 | . 37 . . 211 448 . 209 . . . . Electromagnetic 621 | . 164 314 . . 143 . . . . . . Impact . | . . . . . . . . . . . . Slashing . | . . . . . . . . . . . . Piercing . | . . . . . . . . . . . . Highest Corruption 15 | . . 2 . . 6 . 15 . . . 4 Average Corruption 2 | . . 2 . . 1 . 3 . . . 4 Corruption Purged . | . . . . . . . . . . . . Corruption Blocked . | . . . . . . . . . . . . Effects 36 | . . 5 . . 26 . 2 . . . 3 Message Errors 10 | . . 1 . . 8 . 1 . . . . Matter Fused 5 | . . 1 . . 2 . . . . . 2 Heat Flow Errors 6 | . . 1 . . 4 . 1 . . . . Energy Discharges 5 | . . 1 . . 4 . . . . . . Data Loss (minor) 6 | . . 1 . . 4 . . . . . 1 Data Loss (major) 2 | . . . . . 2 . . . . . . Weapon Failures 2 | . . . . . 2 . . . . . . Overload Shots . | . . . . . . . . . . . . Overflow Damage 93 | . 28 4 . 15 37 9 . . . . . Projectiles 9 | . . . . . . 9 . . . . . Explosions 84 | . 28 4 . 15 37 . . . . . . Melee . | . . . . . . . . . . . . Knockbacks 10 | . . . . . . 6 4 . . . . Impact . | . . . . . . . . . . . . Kinetic 9 | . . . . . . 5 4 . . . . Secondary 1 | . . . . . . 1 . . . . . Self-Inflicted Damage 281 | . 148 43 . . 61 . 29 . . . . Shots 9 | . 3 1 . . 4 . 1 . . . . Rammed 6 | . . 1 . 1 1 1 2 . . . . Targets Rammed 7 | . . 1 . 1 2 1 2 . . . . Kicked . | . . . . . . . . . . . . Crushed 1 | . . . . . 1 . . . . . . Highest Temperature 633 | . 63 234 168 474 536 442 633 . 316 . 24 Average Temperature 134 | . 15 92 82 194 103 261 258 . 171 . 24 Received Heat Transfer 1836 | . 138 159 18 108 519 183 99 9 407 . 196 Effects 35 | . . . . 3 6 13 13 . . . . Shutdowns 12 | . . . . 1 2 4 5 . . . . Energy Bleed 3 | . . . . . . 2 1 . . . . Interference 6 | . . . . 2 2 1 1 . . . . Matter Decay 7 | . . . . . 1 3 3 . . . . Short Circuit 3 | . . . . . . 1 2 . . . . Damage (minor) 3 | . . . . . 1 1 1 . . . . Damage (major) 1 | . . . . . . 1 . . . . . Siege Activations . | . . . . . . . . . . . . Robots Corrupted . | . . . . . . . . . . . . Combat Hostiles . | . . . . . . . . . . . . Parts Fried 1 | . . . . . 1 . . . . . . Impact Corruptions . | . . . . . . . . . . . . Robots Melted . | . . . . . . . . . . . . Combat Hostiles . | . . . . . . . . . . . . Parts Melted 4 | . . 1 2 . 1 . . . . . . Heat Transferred 3831 | . 550 705 287 750 814 . 725 . . . . Parts Sabotaged . | . . . . . . . . . . . . Parts Stolen . | . . . . . . . . . . . . Parts Stripped . | . . . . . . . . . . . . Power Chain Reactions 4 | . 2 2 . . . . . . . . . Alert | -11 -10 -9 -8 -8 -7 -6 -5 -4 -4 -4 -3 ------- Run | Yrd Mat Mat Mat Sto Fac Fac Fac Fac Upp Upp Res Peak Influence 550 | . 218 200 130 465 550 374 228 83 . . 287 Initial 269 | . . 20 33 54 114 269 77 53 . . 87 Average 191 | . 109 62 79 220 273 287 114 67 . . 157 Maximum Alert Level 2 | . 1 1 . 2 2 1 1 . . . 1 Low Security (%) 57 | 100 88 99 100 49 30 2 94 100 . . 74 Level 1 36 | . 11 . . 38 56 97 5 . . . 25 Level 2 6 | . . . . 12 13 . . . . . . Level 3 . | . . . . . . . . . . . . Level 4 . | . . . . . . . . . . . . Level 5 . | . . . . . . . . . . . . High Security . | . . . . . . . . . . . . Max Security . | . . . . . . . . . . . . Squads Dispatched 20 | . 1 2 1 . 12 1 2 . . . 1 Investigation 4 | . . 2 . . 2 . . . . . . Extermination 5 | . . . . . 4 . 1 . . . . Reinforcement 8 | . 1 . 1 . 3 1 1 . . . 1 Assault . | . . . . . . . . . . . . Garrison 3 | . . . . . 3 . . . . . . Intercept . | . . . . . . . . . . . . Searches Triggered . | . . . . . . . . . . . . Construction Impeded . | . . . . . . . . . . . . Haulers Reinforced . | . . . . . . . . . . . . Active Scanning Responses . | . . . . . . . . . . . . Cargo Convoy Interrupts . | . . . . . . . . . . . . Stealth | -11 -10 -9 -8 -8 -7 -6 -5 -4 -4 -4 -3 --------- Run | Yrd Mat Mat Mat Sto Fac Fac Fac Fac Upp Upp Res Distress Signals 10 | . 1 . 3 1 1 . 2 . . . 2 Communications Jammed 49 | . . . . . 1 . 48 . . . . Distress Signals 48 | . . . . . . . 48 . . . . Times Spotted 149 | . 20 13 7 16 42 6 16 1 9 . 19 Peak Tracking Total 12 | . 4 5 3 4 4 3 8 1 4 . 12 Tactical Retreats 20 | . 3 2 1 1 1 1 . . 7 . 4 Traps | -11 -10 -9 -8 -8 -7 -6 -5 -4 -4 -4 -3 ------- Run | Yrd Mat Mat Mat Sto Fac Fac Fac Fac Upp Upp Res Traps Triggered 3 | . . 1 . . 1 . . . . . 1 Indirectly . | . . . . . . . . . . . . Trap Hack Attempts . | . . . . . . . . . . . . Triggered . | . . . . . . . . . . . . Disarmed . | . . . . . . . . . . . . Reprogrammed . | . . . . . . . . . . . . Reused . | . . . . . . . . . . . . Traps Extracted . | . . . . . . . . . . . . Installed . | . . . . . . . . . . . . Triggered 1 | . . 1 . . . . . . . . . Machines | -11 -10 -9 -8 -8 -7 -6 -5 -4 -4 -4 -3 ---------- Run | Yrd Mat Mat Mat Sto Fac Fac Fac Fac Upp Upp Res Machines Disabled 7 | . 2 1 . 2 2 . . . . . . Max in Single Turn 2 | . 1 1 . 2 1 . . . . . . Machines Repaired . | . . . . . . . . . . . . Machines Dismantled . | . . . . . . . . . . . . Machines Sabotaged . | . . . . . . . . . . . . Overloaded Fab Kills . | . . . . . . . . . . . . Hacking | -11 -10 -9 -8 -8 -7 -6 -5 -4 -4 -4 -3 --------- Run | Yrd Mat Mat Mat Sto Fac Fac Fac Fac Upp Upp Res Machines Accessed 10 | . 1 . 1 1 3 2 1 . . . 1 Terminals 8 | . 1 . 1 1 2 1 1 . . . 1 Fabricators 1 | . . . . . . 1 . . . . . Repair Stations 1 | . . . . . 1 . . . . . . Recycling Units . | . . . . . . . . . . . . Scanalyzers . | . . . . . . . . . . . . Garrison Access . | . . . . . . . . . . . . Total Hacks 16 | . 2 . 1 1 6 3 1 . . . 2 Successful 6 | . 1 . . 1 1 2 . . . . 1 Failed 10 | . 1 . 1 . 5 1 1 . . . 1 Catastrophic 2 | . . . . . 2 . . . . . . Database Lockouts . | . . . . . . . . . . . . Manual 6 | . 2 . 1 1 1 . 1 . . . . Terminals 12 | . 2 . 1 1 3 2 1 . . . 2 Fabricators 1 | . . . . . . 1 . . . . . Repair Stations 3 | . . . . . 3 . . . . . . Recycling Units . | . . . . . . . . . . . . Scanalyzers . | . . . . . . . . . . . . Garrison Access . | . . . . . . . . . . . . Terminal Hacks 2 | . . . . . . 1 . . . . 1 Record 2 | . . . . . . 1 . . . . 1 Fabricator Hacks 1 | . . . . . . 1 . . . . . Network Status 1 | . . . . . . 1 . . . . . Repair Station Hacks 1 | . . . . . 1 . . . . . . Scan Component 1 | . . . . . 1 . . . . . . Recycling Unit Hacks . | . . . . . . . . . . . . Scanalyzer . | . . . . . . . . . . . . Garrison Access Hacks . | . . . . . . . . . . . . Unauthorized Hacks 2 | . 1 . . 1 . . . . . . . Terminals 2 | . 1 . . 1 . . . . . . . Assimilate 2 | . 1 . . 1 . . . . . . . Fabricators . | . . . . . . . . . . . . Repair Stations . | . . . . . . . . . . . . Recycling Units . | . . . . . . . . . . . . Scanalyzers . | . . . . . . . . . . . . Garrison Access . | . . . . . . . . . . . . Data Cores Recovered . | . . . . . . . . . . . . Used . | . . . . . . . . . . . . Hacking Detections 7 | . 1 . 1 . 2 1 1 . . . 1 Full Trace Events 2 | . . . . . 2 . . . . . . Feedback Events . | . . . . . . . . . . . . Feedback Blocked . | . . . . . . . . . . . . Robot Schematics Acquired . | . . . . . . . . . . . . Robots Built . | . . . . . . . . . . . . Authchips . | . . . . . . . . . . . . Time . | . . . . . . . . . . . . Total Robot Build Rating . | . . . . . . . . . . . . Part Schematics Acquired . | . . . . . . . . . . . . Parts Built . | . . . . . . . . . . . . Authchips . | . . . . . . . . . . . . Time . | . . . . . . . . . . . . Total Part Build Rating . | . . . . . . . . . . . . Parts Repaired . | . . . . . . . . . . . . Time . | . . . . . . . . . . . . Parts Recycled . | . . . . . . . . . . . . Recycled Matter . | . . . . . . . . . . . . Retrieved Matter . | . . . . . . . . . . . . Retrieved Components . | . . . . . . . . . . . . Parts Scanalyzed . | . . . . . . . . . . . . Part Schematics Acquired . | . . . . . . . . . . . . Parts Damaged . | . . . . . . . . . . . . Bothacking | -11 -10 -9 -8 -8 -7 -6 -5 -4 -4 -4 -3 ------------ Run | Yrd Mat Mat Mat Sto Fac Fac Fac Fac Upp Upp Res Used RIF Installer . | . . . . . . . . . . . . Robots Hacked . | . . . . . . . . . . . . Non-combat . | . . . . . . . . . . . . Combat . | . . . . . . . . . . . . Robot Hacks Applied . | . . . . . . . . . . . . Relay Couplers Released 3 | . . . . . 3 . . . . . . Programmers 3 | . . . . . 3 . . . . . . Fabnet Peak Effective % . | . . . . . . . . . . . . Robots Rewired . | . . . . . . . . . . . . Allies Hacked . | . . . . . . . . . . . . Hacks Repelled . | . . . . . . . . . . . . Allies | -11 -10 -9 -8 -8 -7 -6 -5 -4 -4 -4 -3 -------- Run | Yrd Mat Mat Mat Sto Fac Fac Fac Fac Upp Upp Res Total Allies 11 | . 1 . . 10 . . . . . . . Largest Group 10 | . 1 1 . 10 . . . . . . . Highest-Rated Group 173 | . 10 10 . 173 . . . . . . . Highest-Rated Ally 29 | . 10 10 . 29 . . . . . . . Total Orders . | . . . . . . . . . . . . Ally Attacks 55 | . . . . 55 . . . . . . . Total Damage 785 | . . . . 785 . . . . . . . Kills 9 | . . . . 9 . . . . . . . Allies Corrupted . | . . . . . . . . . . . . Allies Melted . | . . . . . . . . . . . . Intel | -11 -10 -9 -8 -8 -7 -6 -5 -4 -4 -4 -3 ------- Run | Yrd Mat Mat Mat Sto Fac Fac Fac Fac Upp Upp Res Robot Analysis Total . | . . . . . . . . . . . . Derelict Logs Recovered 1 | . . . . . . . . . . 1 . Drone Launches . | . . . . . . . . . . . . Drone Recoveries . | . . . . . . . . . . . . Exploration | -11 -10 -9 -8 -8 -7 -6 -5 -4 -4 -4 -3 ------------- Run | Yrd Mat Mat Mat Sto Fac Fac Fac Fac Upp Upp Res Turns Passed 5845 | 84 801 552 389 628 2112 411 324 40 299 15 190 Spaces Moved 3527 | 52 401 237 129 341 933 198 152 79 597 29 379 Core 1076 | 9 . . . . . . 25 79 597 29 337 Treads 2409 | 43 401 237 129 341 933 198 127 . . . . Legs . | . . . . . . . . . . . . Wheels . | . . . . . . . . . . . . Hover . | . . . . . . . . . . . . Flight 42 | . . . . . . . . . . . 42 Fastest Speed 45 | 50 160 160 160 160 155 160 50 50 50 50 45 Average Speed 124 | 140 160 160 160 160 156 164 154 50 50 50 49 Slowest Speed 600 | 160 160 160 160 160 160 240 600 50 50 50 50 Overloaded Moves . | . . . . . . . . . . . . Propulsion Burnouts . | . . . . . . . . . . . . Robots Hopped . | . . . . . . . . . . . . Cave-ins Triggered 1 | . . . . . . . 1 . . . . Exploration Rate (%) 22 | 4 53 16 14 55 26 4 7 3 62 7 14 Regions Visited 11 Branch Regions 3 Pre-discovered Areas . | . . . . . . . . . . . . Known Exits Taken 6 | . 1 1 1 1 1 1 . . . . . Unknown Exits Taken 5 | 1 . . . . . . 1 1 1 1 . Scrap Searched . | . . . . . . . . . . . . Spaces Dug . | . . . . . . . . . . . . Terrain Destroyed 91 | . 27 5 . 20 25 . 14 . . . . Melee . | . . . . . . . . . . . . Projectile . | . . . . . . . . . . . . AOE 91 | . 27 5 . 20 25 . 14 . . . . Terrain Rammed . | . . . . . . . . . . . . Walls Destroyed . | . . . . . . . . . . . . Machines Disabled . | . . . . . . . . . . . . Actions | -11 -10 -9 -8 -8 -7 -6 -5 -4 -4 -4 -3 --------- Run | Yrd Mat Mat Mat Sto Fac Fac Fac Fac Upp Upp Res Total 4568 | 60 492 360 305 396 1424 249 199 78 596 28 381 Wait 707 | . 44 75 158 24 355 30 20 . . . 1 Move 3516 | 51 400 236 128 340 932 197 151 78 596 28 379 Hop . | . . . . . . . . . . . . Pick Up 41 | 3 7 2 4 4 19 2 . . . . . Fast Attach 20 | 5 2 4 1 2 4 1 . . . . 1 Attach 20 | 1 1 . 2 2 3 3 8 . . . . Detach 1 | . . . . 1 . . . . . . . Swap 36 | . 2 4 3 5 19 2 1 . . . . Drop 37 | . 1 5 5 4 22 . . . . . . Fire 183 | . 35 33 4 13 68 13 17 . . . . Melee . | . . . . . . . . . . . . Ram 1 | . . . . . . . 1 . . . . Kick . | . . . . . . . . . . . . Crush 6 | . . 1 . 1 2 1 1 . . . . Escape Stasis . | . . . . . . . . . . . . Rewire . | . . . . . . . . . . . . Trap . | . . . . . . . . . . . . Miscellaneous . | . . . . . . . . . . . . Route ------- -11/Scrapyard -10/Materials (discovered 3 exits: *Mat x2 / [*Min]) -9/Materials -8/Materials -8/Storage -7/Factory -6/Factory -5/Factory -4/Factory -4/Upper Caves -4/Upper Caves -3/Research History --------- Turn | Location | Event 7 | -11/Scrapyard | Discovered new exit (range 14) 85 | -11/Scrapyard | Entered Materials 323 | -10/Materials | Build established: Mutant 443 | -10/Materials | Discovered new exit (range 9) 606 | -10/Materials | Discovered new exit (range 9) 882 | -10/Materials | Discovered new exit (range 3) 885 | -10/Materials | Identified exit to Materials 886 | -10/Materials | Entered another Materials area 886 | -9/Materials | Accompanied by 1 ally 886 | -9/Materials | Evolved 2 slots: Propulsion x1, Utility x1 1339 | -9/Materials | Discovered new exit (range 16) 1371 | -9/Materials | Identified exit to Materials 1438 | -9/Materials | Entered another Materials area 1438 | -8/Materials | Evolved 2 slots: Propulsion x1, Weapon x1 1443 | -8/Materials | Build established: Scavenger-Mutant 1751 | -8/Materials | Build established: Scavenger-Skirmisher 1803 | -8/Materials | Discovered new exit (range 5) 1808 | -8/Materials | Identified exit to Storage 1827 | -8/Materials | Entered Storage 2007 | -8/Storage | Assisted by bots powering up and referring to "LRC-V3" 2091 | -8/Storage | Lost 3 allies 2219 | -8/Storage | Lost 3 allies 2403 | -8/Storage | Discovered new exit (range 14) 2424 | -8/Storage | Identified exit to Factory 2455 | -8/Storage | Entered Factory 2455 | -7/Factory | Evolved 2 slots: Utility x1, Weapon x1 2456 | -7/Factory | Build established: Scavenger-Gunner 2479 | -7/Factory | Lost 4 allies 2498 | -7/Factory | Garrison activated, responded to threat 2922 | -7/Factory | Build established: Scavenger-Tank 3584 | -7/Factory | Build established: Tank 4410 | -7/Factory | Build established: Gunner 4509 | -7/Factory | Discovered new exit (range 9) 4565 | -7/Factory | Identified exit to Factory 4567 | -7/Factory | Entered another Factory area 4567 | -6/Factory | Evolved 2 slots: Power x1, Utility x1 4872 | -6/Factory | Discovered new exit (range 9) 4951 | -6/Factory | Lost 3 parts (1n2u) 4976 | -6/Factory | Identified exit to Factory 4978 | -6/Factory | Entered another Factory area 4978 | -5/Factory | Evolved 2 slots: Utility x1, Weapon x1 5281 | -5/Factory | Crushed by falling debris 5281 | -5/Factory | System corruption reached 10% 5289 | -5/Factory | Core integrity fell below 50% 5295 | -5/Factory | Discovered new exit (range 14) 5301 | -5/Factory | Core integrity fell below 20% 5302 | -5/Factory | Entered another Factory area 5302 | -4/Factory | Evolved 2 slots: Power x1, Weapon x1 5319 | -4/Factory | Lost 17 parts (2p2n5u8w) 5336 | -4/Factory | Discovered new exit (range 11) 5342 | -4/Factory | Entered Upper Caves 5380 | -4/Upper Caves | Spotted B-86 Titan 5403 | -4/Upper Caves | Attracted the attention of an 0b10 checkpoint 5561 | -4/Upper Caves | Build established: Mutant 5588 | -4/Upper Caves | Core integrity fell below 50% 5634 | -4/Upper Caves | Discovered new exit (range 13) 5641 | -4/Upper Caves | Entered another Upper Caves area 5646 | -4/Upper Caves | Learned Research stockpile data 5653 | -4/Upper Caves | Discovered new exit (range 6) 5656 | -4/Upper Caves | Entered Research 5656 | -3/Research | Evolved 2 slots: Propulsion x1, Utility x1 5737 | -3/Research | Spotted B-86 Titan 5767 | -3/Research | Core integrity fell below 50% 5783 | -3/Research | Core integrity fell below 20% 5816 | -3/Research | Spotted B-86 Titan 5846 | -3/Research | Destroyed by H-71 Marshal with Heavy Mass Driver Last Messages --------------- 05780_ Penetrated by Slug. 05780_ Impulse Thruster Array destroyed. 05780_ Slug penetrates Wall. 05784_ K-01 Serf cleans the Graviton Restrictor. 05790_ Critical hit (Burn: +37). 05790_ K-01 Serf cleans the Graviton Restrictor. 05816_ C-30 ARC bursts open, deploying its payload. 05816_ P-80 Master unfolds itself. 05817_ R-10 Processor destroyed. 05819_ K-01 Serf collects debris. 05820_ Slug penetrates Wall. 05828_ System corrupted: Matter fused (-6). 05828_ U-05 Engineer builds a Wall. 05829_ K-01 Serf cleans the Quantum Separator. 05846_ ALERT: Suspicious intruders detected, dispatching Cutter reinforcements to area. 05846_ Penetrated by Slug. Map ----- +----------------------------------------------------+ | ?????????????????????????????????????????????????? | | ?????????????????????????????????????????????????? | | ?????????????????????????????????????????????????? | | ?????????????????????????????????????????????????? | | ?????????????????????????????????????????????????? | | ?????????????????????????????????????????????????? | | ??????????!??????????????????????????????????????? | | ?????????????????????????????????????????????????? | | ?????????????????????????????????????????????????? | | ?????????????????????????????????????????????????? | | ?????????????????????????????????????????????????? | | ?????????????????????????????????????????????????? | | ?????????????????????????????????????????????????? | | ?????????????????????????????????????????????????? | | ?????????????????????????????????????????????????? | | ?????????????????????????????????????????????????? | | ?????????????????????????????????????????????????? | | ??????????????????????#??????????????????????????? | | ??????????????????????# ?????????????????????????? | | ??????????????????????#u?????????????????????????? | | ??????????????????????# ?????????????????????????? | | ??????????????????????# ############ ?????????? | | ??????????????????????# ?????????? | | ??????????????????????# H ????????? | | ??????????????????????# ????????????? | | ??????????????????????# @% #???????????????????? | | ??????????????????????# #???????????????????? | | ??????????????????????# +???????????????????? | | ??????????????????????# #???????????????????? | | ??????????????????###?#+## #???????????????????? | | ??????????????????# ??# #???????????????????? | | ??????????????????# [ ! # #???????????????????? | | ??????????????????# + #???????????????????? | | ??????????????????#=/= # #???????????????????? | | ??????????????????#/== ??# #???????????????????? | | ??????????????????#/=????# #???????????????????? | | ?????????????###########?# #???????????????????? | | ?????????????+ #?# #???????????????????? | | ??????????????? !! #?# #???????????????????? | | ?????????????????! ! ### A ###?????????????????? | | ??????????????????? # #?????????????????? | | ??????????????????###+## #?????????????????? | | ??????????????????# #?????????????????? | | ??????????????????# ###???????????????? | | #######?????# ????# ????????????? | | #?????# ??# ???????????? | | #?????# # ^ = ???????????? | | #?????# + """"""" ???????????? | | #?????# # """"""" ???????????? | | #?????####### """"""" ???????????? | +----------------------------------------------------+ Best States ------------- Heat Dissipation 46 Energy Generation 31 Energy Capacity 360 Matter Stores 300 Matter Capacity 350 Sight Range 16 Robot Scan Range 14 Terrain Scan Density 10 Jamming Range 12 Armor Coverage 225 Resistance: TH 10 Evasion (%) 61 Recoil Reduction 4 Particle Charging 20 Offensive Hacking 10 Item Schematics ----------------- None Robot Schematics ------------------ None Fabricated ------------ Nothing Alien Tech Used ----------------- None Achievements -------------- Dangerous Findings Challenges ------------ None Game ------ Seed MachinePortableWartreads Manual? 0 Play Time 01:02:40 Cumulative 21.5 hours Start 2024.12.11 @ 10:24:23 End 2024.12.11 @ 11:27:28 Sessions 1 Manual Loads 0 Difficulty Rogue Special Mode None Game No. 27 Rogue 27 Adventurer 0 Explorer 0 Win Type - Total 0 Types 0/0/0/0/0/0/0/0/0 Lore% 13 Gallery% 22 Achievement% 20 Wizard Run 0 Options --------- Layout 1 ASCII 0 Keyboard 1 Movement Numpad Keybinds 0 Fullscreen 1 Font 24/Smallcaps Map View 50x35 Zoom Use 0% Tactical HUD 1 Map Filters NONE Filters NONE Steam 1 RUN: 464c46ab-15ca-4a46-8a39-fc0fa5f3e678